Cogmind - Beta 13 @@@ ROGUE MODE // 2024.07.08 @ 16:20:59 Player: maykstuff Result: Destroyed by G-47 Trooper with Particle Gun Performance ------------- Evolutions (2) 1000 Regions Visited (4) 800 Robots Destroyed (90) 450 Value Destroyed (2388) 2388 Prototype IDs (6) 120 Alien Tech Used (0) 0 Bonus (623) 623 TOTAL SCORE: 5381 Bonus ------- High Alert Combat Kills 497 Follower Combat Kills 126 Cogmind --------- Core Integrity 0/550 Matter 220/300 Energy 19/100 System Corruption 0% Temperature Warm (185) Movement Core (100) Ox1 Location -8/Materials Parts ------- > --- POWER (1) -------- (None) > --- PROPULSION (5) --- (None) > --- UTILITY (3) ------ Terrain Scan Processor > --- WEAPON (2) ------- Heavy Particle Cannon > --- INVENTORY (5) ---- Improved Datajack Flail Peak State ------------ > --- POWER ------------ Light Ion Engine > --- PROPULSION ------- Armored Wheel Armored Wheel Armored Wheel Flight Unit VTOL Module > --- UTILITY ---------- Heat Sink Small Storage Unit > --- WEAPON ----------- Shock Bomb Launcher Flail > --- INVENTORY -------- Improved Ion Engine Flight Unit EMP Blaster Shock Bomb Launcher Rocket Launcher [Rating: 18] Favorites ----------- Power Improved Ion Engine Engine Improved Ion Engine Propulsion Armored Wheel Treads Light Treads Wheel Armored Wheel Hover Unit Backup Propulsion I Flight Unit Flight Unit Utility Small Storage Unit Device Sensor Array Storage Small Storage Unit Processor Terrain Scan Processor Weapon Improved EM Shotgun Energy Gun Improved EM Shotgun Energy Cannon Heavy Particle Cannon Ballistic Gun Assault Rifle Launcher Rocket Launcher Impact Weapon Flail Build | -11 -10 -9 -9 -8 ------- Run | Yrd Mat Mat Min Mat Slots Evolved 4 | . . 2 . 2 Power . | . . . . . Propulsion 3 | . . 2 . 1 Utility 1 | . . . . 1 Weapon . | . . . . . Parts Attached 58 | 6 4 20 3 25 Power 9 | 1 . 2 . 6 Engine 9 | 1 . 2 . 6 Core . | . . . . . Reactor . | . . . . . Propulsion 23 | 2 2 9 1 9 Treads 3 | . 2 1 . . Leg . | . . . . . Wheel 10 | 2 . 5 . 3 Hover . | . . . . . Flight 10 | . . 3 1 6 Utility 4 | 1 1 . . 2 Device 2 | . 1 . . 1 Storage 1 | 1 . . . . Processor 1 | . . . . 1 Hackware . | . . . . . Protection . | . . . . . Artifact . | . . . . . Weapon 22 | 2 1 9 2 8 Energy Gun 5 | 1 . 4 . . Energy Cannon 1 | . . . . 1 Ballistic Gun 4 | 1 . 3 . . Ballistic Cannon . | . . . . . Launcher 9 | . 1 2 1 5 Special Weapon . | . . . . . Impact Weapon 3 | . . . 1 2 Slashing Weapon . | . . . . . Piercing Weapon . | . . . . . Special Melee Weapon . | . . . . . Unidentified Prototypes 2 | . . 2 . . Parts Lost 29 | . . 9 1 19 Power 4 | . . 1 . 3 Propulsion 14 | . . 4 1 9 Utility 3 | . . 1 . 2 Weapon 8 | . . 3 . 5 Highest Loss Streak 7 | . . 2 1 7 To Critical Strikes . | . . . . . Average Slot Usage (%) 86 | . 96 94 87 65 Engine 10 | . 14 10 11 8 Treads 10 | . 5 19 8 . Wheel 20 | . 21 16 33 12 Flight 5 | . . 6 2 12 Device 6 | . 11 8 . 6 Storage 10 | . 14 11 11 8 Energy Gun 6 | . 2 11 8 . Ballistic Gun 4 | . 14 7 . . Launcher 8 | . 12 2 11 13 Impact Weapon 1 | . . . 3 2 Naked Turns . | . . . . . Heaviest Build 23 | 13 16 19 19 23 Greatest Support 63 | 32 40 63 36 36 Greatest Overweight (x) 2 | 2 . 1 . 1 Average Overweight (x) . | . . . . . Largest Inventory Capacity 8 | 8 8 8 8 8 Average Capacity 7 | 7 8 8 8 7 Most Carried 8 | 3 8 8 8 8 Average Carried 7 | 2 7 7 8 5 Final Capacity 8 | 8 8 8 8 5 Final Carried 8 | 3 8 8 8 2 Class Distribution -------------------- 96% | Mutant Dominant Class ---------------- Mutant | -10/Materials Mutant | -9/Materials Mutant | -9/Mines Mutant | -8/Materials Resources | -11 -10 -9 -9 -8 ----------- Run | Yrd Mat Mat Min Mat Matter Collected 1453 | 240 59 536 102 516 Remotely . | . . . . . Salvage Created 2392 | . 218 842 151 1181 Parts 179 | . 29 67 10 73 Haulers Intercepted . | . . . . . Recyclers Shooed 1 | . . . . 1 Parts Field Recycled . | . . . . . Retrieved Matter . | . . . . . Parts Self-Destructed . | . . . . . Prevented . | . . . . . Kills | -11 -10 -9 -9 -8 ------- Run | Yrd Mat Mat Min Mat Combat Hostiles Destroyed 67 | . 13 23 10 21 Melee 3 | . . . 2 1 Guns 20 | . 4 15 1 . Cannons 1 | . . . . 1 AOE 43 | . 9 8 7 19 Classes Destroyed 13 | . 4 4 . 5 Worker 8 | . 2 1 . 5 Builder 4 | . . 2 . 2 Tunneler 2 | . . 2 . . Mechanic 1 | . . . . 1 Operator 2 | . 1 1 . . Watcher 6 | . . 3 . 3 Swarmer 27 | . 9 11 7 . Grunt 22 | . 4 5 3 10 Brawler 1 | . . . . 1 Duelist 2 | . . . . 2 Sentry 9 | . . 7 . 2 Specialist 4 | . . . . 4 Hunter 2 | . . . . 2 Best Kill Streak 13 | . 13 10 3 9 Combat Bots Only 10 | . 10 8 3 5 Max Kills in Single Turn 4 | . 3 4 3 3 Gunslinging . | . . . . . Exploded 3 | . 3 2 3 2 Melee 1 | . . . 1 1 Uniques/NPCs Destroyed . | . . . . . Combat | -11 -10 -9 -9 -8 -------- Run | Yrd Mat Mat Min Mat Hostile Shots Fired 293 | . 16 129 19 129 Missed 79 | . 7 35 5 32 Damage Taken 3318 | . 106 1250 152 1810 Core 789 | . 16 205 18 550 Absorbed by Shields . | . . . . . Regen/Repaired (Parts) 24 | . 24 . . . Core Remaining (%) 79 | 100 93 . 44 . Volleys Fired 136 | . 13 64 9 50 Largest 2 | . 2 2 2 2 Hottest 90 | . 60 90 78 75 Shots Fired 228 | . 26 121 13 68 Gun 133 | . 16 111 6 . Cannon 7 | . . . . 7 Launcher 88 | . 10 10 7 61 Special . | . . . . . Kinetic 51 | . 13 38 . . Thermal 50 | . 3 40 . 7 Explosive 53 | . 10 9 7 27 Electromagnetic 74 | . . 34 6 34 Robot Hit Streak 12 | . 4 12 3 6 Robot Miss Streak 5 | . 4 4 5 3 Penetration Max . | . . . . . Secondary Targets 1 | . . 1 . . Max Gunslinging Chain 1 | . . 1 . . Shots Hit Robots 140 | . 10 84 10 36 Core Hits 147 | . 21 48 13 65 Critical Kills 1 | . . . 1 . Critical Parts Destroyed . | . . . . . Critical Strikes 3 | . . 2 1 . Burn 2 | . . 2 . . Smash 1 | . . . 1 . Melee Attacks 8 | . . . 5 3 Impact 8 | . . . 5 3 Slashing . | . . . . . Piercing . | . . . . . Sneak Attacks . | . . . . . Combat Hostiles . | . . . . . Follow-up Attacks . | . . . . . Damage Inflicted 6419 | . 672 2039 681 3027 Guns 1329 | . 71 1218 40 . Cannons 125 | . . . . 125 Explosions 4768 | . 601 821 527 2819 Melee 174 | . . . 108 66 Ramming 23 | . . . 6 17 Kinetic 446 | . 49 397 . . Thermal 1086 | . 22 567 75 422 Explosive 2971 | . 601 692 452 1226 Electromagnetic 1719 | . . 383 40 1296 Impact 174 | . . . 108 66 Slashing . | . . . . . Piercing . | . . . . . Highest Corruption . | . . . . . Average Corruption . | . . . . . Corruption Purged . | . . . . . Corruption Blocked . | . . . . . Overload Shots . | . . . . . Overflow Damage 83 | . . 12 37 34 Projectiles . | . . . . . Explosions 69 | . . 12 23 34 Melee 14 | . . . 14 . Knockbacks . | . . . . . Impact . | . . . . . Kinetic . | . . . . . Secondary . | . . . . . Self-Inflicted Damage 334 | . 24 65 21 224 Shots 12 | . 1 2 1 8 Rammed 4 | . . . 1 3 Targets Rammed 4 | . . . 1 3 Kicked . | . . . . . Crushed . | . . . . . Highest Temperature 173 | . 2 173 30 167 Average Temperature 53 | . 2 62 13 32 Received Heat Transfer 1065 | . 12 426 15 612 Siege Activations . | . . . . . Robots Corrupted . | . . . . . Combat Hostiles . | . . . . . Parts Fried 10 | . . 3 . 7 Impact Corruptions 1 | . . . 1 . Robots Melted . | . . . . . Combat Hostiles . | . . . . . Parts Melted 4 | . . 4 . . Heat Transferred 1919 | . 50 1234 50 585 Parts Sabotaged . | . . . . . Parts Stolen . | . . . . . Parts Stripped . | . . . . . Power Chain Reactions 10 | . . 1 1 8 Alert | -11 -10 -9 -9 -8 ------- Run | Yrd Mat Mat Min Mat Peak Influence 971 | . 535 573 362 971 Initial 225 | . . 225 192 141 Average 398 | . 263 400 290 678 Maximum Alert Level 3 | . 2 2 1 3 Low Security (%) 13 | 100 52 4 4 3 Level 1 42 | . 6 38 95 13 Level 2 32 | . 41 57 . 24 Level 3 11 | . . . . 58 Level 4 . | . . . . . Level 5 . | . . . . . High Security . | . . . . . Max Security . | . . . . . Squads Dispatched 11 | . 1 . . 10 Investigation 3 | . . . . 3 Extermination . | . . . . . Reinforcement 7 | . 1 . . 6 Assault 1 | . . . . 1 Garrison . | . . . . . Intercept . | . . . . . Searches Triggered . | . . . . . Construction Impeded 2 | . . . . 2 Haulers Reinforced . | . . . . . Active Scanning Responses . | . . . . . Cargo Convoy Interrupts . | . . . . . Stealth | -11 -10 -9 -9 -8 --------- Run | Yrd Mat Mat Min Mat Distress Signals 7 | . 4 . . 3 Communications Jammed . | . . . . . Distress Signals . | . . . . . Times Spotted 100 | . 17 31 11 41 Peak Tracking Total 6 | . 6 5 4 6 Tactical Retreats 9 | . 1 . . 8 Traps | -11 -10 -9 -9 -8 ------- Run | Yrd Mat Mat Min Mat Traps Triggered 1 | . . . . 1 Indirectly . | . . . . . Trap Hack Attempts . | . . . . . Triggered . | . . . . . Disarmed . | . . . . . Reprogrammed . | . . . . . Reused . | . . . . . Traps Extracted . | . . . . . Installed . | . . . . . Triggered . | . . . . . Machines | -11 -10 -9 -9 -8 ---------- Run | Yrd Mat Mat Min Mat Machines Disabled 9 | . 3 . 1 5 Max in Single Turn 2 | . 1 . 1 2 Machines Repaired . | . . . . . Machines Dismantled . | . . . . . Machines Sabotaged . | . . . . . Overloaded Fab Kills . | . . . . . Hacking | -11 -10 -9 -9 -8 --------- Run | Yrd Mat Mat Min Mat Machines Accessed 15 | . 6 7 . 2 Terminals 11 | . 3 6 . 2 Fabricators . | . . . . . Repair Stations 1 | . 1 . . . Recycling Units 2 | . 2 . . . Scanalyzers 1 | . . 1 . . Garrison Access . | . . . . . Total Hacks 44 | . 16 18 . 10 Successful 23 | . 9 12 . 2 Failed 21 | . 7 6 . 8 Catastrophic 5 | . 3 1 . 1 Database Lockouts . | . . . . . Manual 6 | . 4 2 . . Terminals 36 | . 10 16 . 10 Fabricators . | . . . . . Repair Stations 3 | . 3 . . . Recycling Units 3 | . 3 . . . Scanalyzers 2 | . . 2 . . Garrison Access . | . . . . . Terminal Hacks 16 | . 4 10 . 2 Robot Analysis 1 | . 1 . . . Prototype ID Bank 2 | . 1 . . 1 Level Access Points 1 | . . 1 . . Alert Level 3 | . . 3 . . Unreport Threat 1 | . . 1 . . Locate Traps 1 | . . 1 . . Dispatch Records 1 | . . 1 . . Recall Investigation 1 | . . 1 . . Hauler Manifests 3 | . 1 1 . 1 Zone Layout 2 | . 1 1 . . Fabricator Hacks . | . . . . . Repair Station Hacks 3 | . 3 . . . Scan Component 1 | . 1 . . . Repair 1 | . 1 . . . Refit 1 | . 1 . . . Recycling Unit Hacks 2 | . 2 . . . Report Inventory 2 | . 2 . . . Scanalyzer 2 | . . 2 . . Insert Component 1 | . . 1 . . Analyze 1 | . . 1 . . Garrison Access Hacks . | . . . . . Unauthorized Hacks . | . . . . . Terminals . | . . . . . Fabricators . | . . . . . Repair Stations . | . . . . . Recycling Units . | . . . . . Scanalyzers . | . . . . . Garrison Access . | . . . . . Data Cores Recovered 2 | . 1 1 . . Used . | . . . . . Hacking Detections 10 | . 4 4 . 2 Full Trace Events 2 | . . . . 2 Feedback Events . | . . . . . Feedback Blocked . | . . . . . Robot Schematics Acquired . | . . . . . Robots Built . | . . . . . Authchips . | . . . . . Time . | . . . . . Total Robot Build Rating . | . . . . . Part Schematics Acquired 1 | . . 1 . . Parts Built . | . . . . . Authchips . | . . . . . Time . | . . . . . Total Part Build Rating . | . . . . . Parts Repaired 1 | . 1 . . . Time 26 | . 26 . . . Parts Recycled . | . . . . . Recycled Matter . | . . . . . Retrieved Matter . | . . . . . Retrieved Components . | . . . . . Parts Scanalyzed 1 | . . 1 . . Part Schematics Acquired 1 | . . 1 . . Parts Damaged . | . . . . . Bothacking | -11 -10 -9 -9 -8 ------------ Run | Yrd Mat Mat Min Mat Used RIF Installer . | . . . . . Robots Hacked . | . . . . . Non-combat . | . . . . . Combat . | . . . . . Robot Hacks Applied . | . . . . . Relay Couplers Released . | . . . . . Fabnet Peak Effective % . | . . . . . Robots Rewired . | . . . . . Allies Hacked . | . . . . . Hacks Repelled . | . . . . . Allies | -11 -10 -9 -9 -8 -------- Run | Yrd Mat Mat Min Mat Total Allies 2 | . . . 2 . Largest Group 2 | . . . 2 2 Highest-Rated Group 49 | . . . 49 49 Highest-Rated Ally 31 | . . . 31 31 Total Orders . | . . . . . Ally Attacks 21 | . . . 9 12 Total Damage 359 | . . . 143 216 Kills 7 | . . . 3 4 Allies Corrupted . | . . . . . Allies Melted . | . . . . . Intel | -11 -10 -9 -9 -8 ------- Run | Yrd Mat Mat Min Mat Robot Analysis Total 1 | . 1 . . . Derelict Logs Recovered 1 | . . . 1 . Drone Launches . | . . . . . Drone Recoveries . | . . . . . Exploration | -11 -10 -9 -9 -8 ------------- Run | Yrd Mat Mat Min Mat Turns Passed 2619 | 79 353 1004 655 528 Spaces Moved 2072 | 68 253 686 646 419 Core 5 | 5 . . . . Treads 213 | . 40 173 . . Legs . | . . . . . Wheels 1704 | 63 213 513 646 269 Hover . | . . . . . Flight 150 | . . . . 150 Fastest Speed 27 | 50 100 90 90 27 Average Speed 96 | 99 109 107 90 77 Slowest Speed 160 | 150 160 160 90 109 Overloaded Moves . | . . . . . Propulsion Burnouts . | . . . . . Robots Hopped . | . . . . . Cave-ins Triggered . | . . . . . Exploration Rate (%) 50 | 4 61 64 98 27 Regions Visited 4 Branch Regions 1 Pre-discovered Areas . | . . . . . Known Exits Taken 1 | . . . 1 . Unknown Exits Taken 3 | 1 1 1 . . Scrap Searched 3 | . . . 3 . Spaces Dug 12 | . . . 12 . Terrain Destroyed 364 | . 44 37 66 217 Melee . | . . . . . Projectile 2 | . . . . 2 AOE 362 | . 44 37 66 215 Terrain Rammed . | . . . . . Walls Destroyed . | . . . . . Machines Disabled . | . . . . . Actions | -11 -10 -9 -9 -8 --------- Run | Yrd Mat Mat Min Mat Total 2449 | 76 301 830 697 545 Wait 135 | . 27 39 32 37 Move 2068 | 67 252 685 645 419 Hop . | . . . . . Pick Up 25 | 3 5 10 1 6 Fast Attach 17 | 6 1 7 1 2 Attach 16 | . . 4 . 12 Detach 1 | . . . . 1 Swap 26 | . 3 10 2 11 Drop 13 | . . 11 1 1 Fire 136 | . 13 64 9 50 Melee 8 | . . . 5 3 Ram 4 | . . . 1 3 Kick . | . . . . . Crush . | . . . . . Escape Stasis . | . . . . . Rewire . | . . . . . Trap . | . . . . . Miscellaneous . | . . . . . Route ------- -11/Scrapyard -10/Materials (discovered 2 exits: *Mat / [*Min]) -9/Materials (discovered 4 exits: *Mat x3 / [*Min]) -9/Mines (discovered 2 exits: *Mat x2) -8/Materials (discovered 2 exits: Fac / [*Sto]) History --------- Turn | Location | Event 16 | -11/Scrapyard | Discovered new exit (range 15) 80 | -11/Scrapyard | Entered Materials 184 | -10/Materials | Discovered new exit (range 16) 314 | -10/Materials | Build established: Mutant 325 | -10/Materials | Destroyed 10 combat bots 364 | -10/Materials | Repaired Com. Wheel 396 | -10/Materials | Discovered new exit (range 15) 433 | -10/Materials | Entered another Materials area 433 | -9/Materials | Evolved 2 slots: Propulsion x2 730 | -9/Materials | Destroyed 8 combat bots 837 | -9/Materials | Discovered new exit (range 14) 851 | -9/Materials | Destroyed 7 combat bots 1040 | -9/Materials | Discovered new exit (range 3) 1248 | -9/Materials | Identified exit to Materials 1271 | -9/Materials | Core integrity fell below 50% 1437 | -9/Materials | Entered Mines 1482 | -9/Mines | Discovered exit to Materials (range 7) 1551 | -9/Mines | A weapon hastily lodged in a ceiling crevice suddenly fell to the ground 1557 | -9/Mines | Discovered exit to Materials (range 12) 1600 | -9/Mines | Learned 4 Materials zone layouts 1838 | -9/Mines | Found a hidden stash of uninstalled traps 2092 | -9/Mines | Entered Materials 2092 | -8/Materials | Accompanied by 2 allies 2092 | -8/Materials | Evolved 2 slots: Propulsion x1, Utility x1 2093 | -8/Materials | Identified exit to Factory 2097 | -8/Materials | Led the pair of lost Derelicts to an unsafe place 2343 | -8/Materials | Core integrity fell below 50% 2358 | -8/Materials | Lost 7 parts (1p4n2w) 2410 | -8/Materials | Discovered new exit (range 5) 2492 | -8/Materials | First assault squad dispatched 2611 | -8/Materials | Core integrity fell below 20% 2620 | -8/Materials | Destroyed by G-47 Trooper with Particle Gun Last Messages --------------- 02597_ EMP Blaster destroyed. 02597_ Penetrated by Slug. 02598_ The unstable cave ceiling collapses. 02599_ Deuterium Engine destroyed. 02600_ X-62 Marksman misfires. 02601_ The unstable cave ceiling collapses. 02601_ Sml. Storage Unit destroyed. 02602_ Penetrated by Slug. 02604_ Arm. Wheel destroyed. 02604_ Critical hit (Burn: +37). 02605_ U-05 Engineer lays Concrete. 02608_ U-05 Engineer builds a Wall. 02612_ U-05 Engineer lays Concrete. 02613_ U-05 Engineer builds a Wall. 02614_ Penetrated by Slug. 02614_ Cesium-ion Thruster destroyed. 02614_ Lgt. Ion Engine destroyed. 02615_ G-47 Trooper destroyed. 02617_ Penetrated by Slug. 02619_ K-01 Serf collects debris. Map ----- +----------------------------------------------------+ | # #?????????????????# ##########???????? | | + #???????????####### #????????????????? | | # #???????????# # #????????????????? | | # #????######## # #????????????????? | | ####### #????# # # #????????????????? | | #????# ###### + #????????????????? | | #????# #????# # ##???????????????? | | ###??# #????# # ???????????????? | | """ ########### """"""?????????? | | ??????????????????????# # """"" #??????? | | ??????????????????????# """""" #??????? | | ??????????????????????# """""" #??????? | | ??????????????????????# =% =%/# """""" #??????? | | ??????????????????????# =! #??????? | | ??????????????????????##### =#??????? | | ??????????????????????????# ! #/########??????? | | ########?????????????????## ! ########### | | #????????????????## ! # # | | #????????????????# # = # """ # | | #????????????????# = # "T" # | | #????????????????# # # " " == | | #?H????????####### # # == | | "T" #????????### # # # = # [= | | """ #????????# ## ####* # # #### # | | #????????# #! # # # [ = = | | ########??####### @# #= # ##### #!# | | ??######### ### x !# + = ### | | ### # g |* # + # #?? | | ## # !%*[ #### ############?? | | k!! # !% # # #????????????? | | < = [! [ + # #????????????? | | ### ## !### # ## #????????????? | | ??# # # # ##########????????????? | | ??######## ######## ######??####???????????????? | | | | | | | | | | | | | | | | | | | | | | | | | | | | | | | | | +----------------------------------------------------+ Best States ------------- Heat Dissipation 41 Energy Generation 14 Energy Capacity 275 Matter Stores 300 Matter Capacity 300 Sight Range 16 Robot Scan Range 14 Terrain Scan Density 85 Evasion (%) 64 Recoil Reduction 3 Item Schematics ----------------- VTOL Module | -9/Materials | Scanalyzed Robot Schematics ------------------ None Fabricated ------------ Nothing Alien Tech Used ----------------- None Achievements -------------- None Challenges ------------ None Game ------ Seed ShadeGravityMagmablaster Manual? 0 Play Time 00:35:51 Cumulative 11.1 hours Start 2024.07.08 @ 15:45:57 End 2024.07.08 @ 16:20:59 Sessions 1 Manual Loads 0 Difficulty Rogue Special Mode None Game No. 22 Rogue 22 Adventurer 0 Explorer 0 Win Type - Total 0 Types 0/0/0/0/0/0/0/0/0 Lore% 11 Gallery% 15 Achievement% 16 Wizard Run 0 Options --------- Layout 1 ASCII 1 Keyboard 0 Movement Numpad Keybinds 0 Fullscreen 1 Font 24/Proggy Map View 50x35 Zoom Use 0% Tactical HUD 1 Map Filters NONE Filters NONE Steam 0 RUN: 2b4f6636-206f-4916-a1b1-b90503213e94